Cogmind - Beta 12 X4 @@@ ROGUE MODE // 2022.12.21 @ 20:56:23 Player: Runia Result: Destroyed by DAS Turret with DAS Cannon Performance ------------- Evolutions (1) 500 Regions Visited (5) 1000 Robots Destroyed (79) 395 Value Destroyed (1958) 1958 Prototype IDs (9) 180 Alien Tech Used (0) 0 Bonus (164) 164 TOTAL SCORE: 4197 Bonus ------- High Alert Combat Kills 164 Cogmind --------- Core Integrity 0/400 Matter 27/300 Energy 306/310 System Corruption 6% Temperature Cool (0) Movement Rolling (150) Ox4 Location -9/Exiles Parts ------- > --- POWER (1) -------- Reinforced Fission Core > --- PROPULSION (3) --- Advanced Myomer Leg Armored Wheel > --- UTILITY (3) ------ Huge Storage Unit Gravity Neutralizer Salvage Targeting Computer > --- WEAPON (2) ------- Heavy Assault Rifle 8R-AWN's Boregun > --- INVENTORY (25) --- Airjet Airjet Experimental Heat Sink Large Storage Unit High-capacity Matter Pod (0) Structural Scanner Trap Scanner Experimental Targeting Computer Advanced Weapon Cycler 8R-AWN's Armor/EX AS-neutralizer No. 17b Heavy Assault Rifle Heavy Assault Rifle Heavy Assault Rifle 8R-AWN's Boregun Rocket Launcher Rocket Launcher Mini Grenade Launcher Datajack Hammer Peak State ------------ > --- POWER ------------ Reinforced Fission Core > --- PROPULSION ------- Light Treads Advanced Myomer Leg Armored Wheel > --- UTILITY ---------- Huge Storage Unit Gravity Neutralizer Salvage Targeting Computer > --- WEAPON ----------- Heavy Assault Rifle 8R-AWN's Boregun > --- INVENTORY -------- Airjet Airjet Experimental Heat Sink Large Storage Unit High-capacity Matter Pod Structural Scanner Trap Scanner Experimental Targeting Computer Advanced Weapon Cycler 8R-AWN's Armor/EX AS-neutralizer No. 17b Heavy Assault Rifle Heavy Assault Rifle Heavy Assault Rifle 8R-AWN's Boregun Rocket Launcher Rocket Launcher Mini Grenade Launcher Datajack Hammer [Rating: 47] Favorites ----------- Power Light Angular Momentum Engine Engine Light Angular Momentum Engine Power Core Reinforced Fission Core Propulsion Light Treads Treads Light Treads Leg Advanced Myomer Leg Wheel Armored Wheel Hover Unit Airjet Utility Huge Storage Unit Device Improved Heat Sink Storage Huge Storage Unit Processor Salvage Targeting Computer Protection Light Armor Plating Weapon Particle Cannon Energy Gun Medium Laser Energy Cannon Particle Cannon Ballistic Gun Autogun Launcher Mini Grenade Launcher Impact Weapon Hammer Build | -11 -10 -10 -9 -9 -9 ------- Run | Scr Mat Min Mat Min Exi Slots Evolved 2 | . . . 2 . . Power . | . . . . . . Propulsion 1 | . . . 1 . . Utility 1 | . . . 1 . . Weapon . | . . . . . . Parts Attached 79 | 2 19 5 29 3 21 Power 5 | . 2 1 1 . 1 Engine 4 | . 2 1 1 . . Core 1 | . . . . . 1 Reactor . | . . . . . . Propulsion 24 | 2 1 2 9 1 9 Treads 17 | 2 . 2 8 . 5 Leg 1 | . . . . . 1 Wheel 4 | . 1 . 1 1 1 Hover 2 | . . . . . 2 Flight . | . . . . . . Utility 13 | . 5 . 4 . 4 Device 2 | . 1 . . . 1 Storage 4 | . 4 . . . . Processor 1 | . . . . . 1 Hackware . | . . . . . . Protection 6 | . . . 4 . 2 Artifact . | . . . . . . Weapon 37 | . 11 2 15 2 7 Energy Gun . | . . . . . . Energy Cannon 9 | . 7 1 1 . . Ballistic Gun 16 | . 2 . 7 1 6 Ballistic Cannon . | . . . . . . Launcher 10 | . 2 1 5 1 1 Special Weapon . | . . . . . . Impact Weapon 2 | . . . 2 . . Slashing Weapon . | . . . . . . Piercing Weapon . | . . . . . . Special Melee Weapon . | . . . . . . Unidentified Prototypes 3 | . . . . . 3 Parts Lost 13 | . . . 1 1 11 Power 1 | . . . . . 1 Propulsion 6 | . . . . 1 5 Utility 4 | . . . 1 . 3 Weapon 2 | . . . . . 2 Highest Loss Streak 10 | . . . 1 1 10 To Critical Strikes 5 | . . . . . 5 Average Slot Usage (%) 96 | . 95 100 99 100 85 Engine 11 | . 14 14 11 11 8 Treads 18 | . 15 14 22 22 20 Wheel 11 | . 12 14 11 11 9 Device 5 | . 5 14 3 . 1 Storage 13 | . 18 14 11 11 11 Processor 1 | . . . . . 10 Protection 8 | . . . 17 22 9 Energy Gun 2 | . 10 . . . . Energy Cannon 9 | . 8 28 5 . . Ballistic Gun 9 | . 9 . 14 19 9 Naked Turns . | . . . . . . Heaviest Build 110 | 14 109 98 102 102 110 Greatest Support 40 | 40 40 16 16 12 24 Greatest Overweight (x) 8 | . 6 6 8 8 8 Average Overweight (x) 6 | . 4 5 7 8 6 Largest Inventory Capacity 25 | 8 25 25 25 25 25 Average Capacity 24 | 8 23 25 25 25 25 Most Carried 25 | 6 19 24 25 24 25 Average Carried 19 | 4 9 20 24 23 22 Final Capacity 25 | 8 25 25 25 25 25 Final Carried 24 | 2 17 24 24 23 22 Class Distribution -------------------- 64% | Mutant 35% | Scavenger-Mutant Dominant Class ---------------- Mutant | -10/Materials Mutant | -10/Mines Scavenger-Mutant | -9/Materials Scavenger-Mutant | -9/Mines Scavenger-Mutant | -9/Exiles Resources | -11 -10 -10 -9 -9 -9 ----------- Run | Scr Mat Min Mat Min Exi Matter Collected 1923 | 200 300 60 804 40 519 Remotely . | . . . . . . Salvage Created 2760 | . 701 21 1808 93 137 Parts 180 | . 30 4 129 7 10 Haulers Intercepted 6 | . 2 . 4 . . Recyclers Shooed 3 | . 3 . . . . Parts Field Recycled . | . . . . . . Retrieved Matter . | . . . . . . Parts Self-Destructed . | . . . . . . Prevented . | . . . . . . Kills | -11 -10 -10 -9 -9 -9 ------- Run | Scr Mat Min Mat Min Exi Combat Hostiles Destroyed 58 | . 11 3 37 3 4 Guns 21 | . 6 . 13 . 2 Cannons 11 | . 1 . 10 . . AOE 26 | . 4 3 14 3 2 Classes Destroyed 14 | . 4 1 8 . 1 Worker 3 | . . . 3 . . Builder 3 | . . . 3 . . Tunneler 1 | . . . 1 . . Hauler 6 | . 2 . 4 . . Recycler 4 | . 2 . 2 . . Operator 1 | . . . 1 . . Watcher 6 | . 3 . 3 . . Swarmer 11 | . . 3 8 . . Grunt 28 | . 11 . 14 3 . Brawler 2 | . . . 2 . . Duelist 2 | . . . 2 . . Protector 2 | . . . 2 . . Sentry 9 | . . . 9 . . Assembled 3 | . . . . . 3 Best Kill Streak 8 | . 3 3 8 3 2 Combat Bots Only 5 | . 3 3 5 3 2 Max Kills in Single Turn 3 | . 3 3 3 2 1 Gunslinging . | . . . . . . Exploded 3 | . 3 3 3 2 1 Melee . | . . . . . . Uniques/NPCs Destroyed 1 | . . . . . 1 8R-AWN (-9/Exiles) Combat | -11 -10 -10 -9 -9 -9 -------- Run | Scr Mat Min Mat Min Exi Damage Taken 3011 | . 412 138 910 313 1238 Core 493 | . 43 24 84 98 244 Absorbed by Shields . | . . . . . . Core Remaining (%) 86 | 100 . 73 . . . Volleys Fired 229 | . 66 6 92 2 63 Largest 2 | . 2 2 2 1 2 Hottest 136 | . 120 136 136 30 46 Shots Fired 411 | . 129 11 173 2 96 Gun 304 | . 105 . 108 . 91 Cannon 85 | . 21 10 54 . . Launcher 22 | . 3 1 11 2 5 Special . | . . . . . . Kinetic 256 | . 57 . 108 . 91 Thermal 129 | . 65 10 54 . . Explosive 22 | . 3 1 11 2 5 Electromagnetic 4 | . 4 . . . . Robot Hit Streak 17 | . 15 3 17 3 10 Robot Miss Streak 6 | . 6 2 4 . 4 Penetration Max . | . . . . . . Secondary Targets 6 | . 1 . 5 . . Max Gunslinging Chain 1 | . 1 . 1 . . Shots Hit Robots 257 | . 72 5 114 2 64 Core Hits 133 | . 34 3 71 5 20 Critical Kills 2 | . . . 2 . . Critical Parts Destroyed 3 | . 1 . 2 . . Critical Strikes 9 | . 5 . 4 . . Burn 4 | . 4 . . . . Destroy 1 | . 1 . . . . Smash 4 | . . . 4 . . Melee Attacks 9 | . . . 9 . . Impact 9 | . . . 9 . . Slashing . | . . . . . . Piercing . | . . . . . . Sneak Attacks 5 | . . . 5 . . Combat Hostiles . | . . . . . . Follow-up Attacks . | . . . . . . Damage Inflicted 5662 | . 1177 199 3128 223 935 Guns 2477 | . 608 . 1124 . 745 Cannons 1010 | . 261 103 646 . . Explosions 1896 | . 308 96 1079 223 190 Melee 279 | . . . 279 . . Ramming . | . . . . . . Kinetic 2103 | . 234 . 1124 . 745 Thermal 1377 | . 628 103 646 . . Explosive 1863 | . 275 96 1079 223 190 Electromagnetic 40 | . 40 . . . . Impact 279 | . . . 279 . . Slashing . | . . . . . . Piercing . | . . . . . . Highest Corruption 6 | . . . 2 6 6 Average Corruption 2 | . . . 1 3 6 Corruption Purged . | . . . . . . Corruption Blocked . | . . . . . . Effects 46 | . . . 20 . 26 Message Errors 7 | . . . 4 . 3 Matter Fused 16 | . . . 5 . 11 Heat Flow Errors 3 | . . . 3 . . Energy Discharges 5 | . . . 1 . 4 Data Loss (minor) 8 | . . . 3 . 5 Data Loss (major) 1 | . . . . . 1 Misfires 3 | . . . 2 . 1 Weapon Failures 3 | . . . 2 . 1 Overload Shots . | . . . . . . Overflow Damage 161 | . . . 160 . 1 Projectiles . | . . . . . . Explosions 26 | . . . 25 . 1 Melee 135 | . . . 135 . . Knockbacks 1 | . . . 1 . . Impact 1 | . . . 1 . . Kinetic . | . . . . . . Secondary . | . . . . . . Self-Inflicted Damage 77 | . 31 14 32 . . Shots 5 | . 1 1 3 . . Rammed . | . . . . . . Targets Rammed . | . . . . . . Kicked . | . . . . . . Crushed . | . . . . . . Highest Temperature 300 | . 213 210 300 25 28 Average Temperature 58 | . 62 106 60 18 12 Received Heat Transfer 753 | . 234 54 435 30 . Siege Activations . | . . . . . . Robots Corrupted . | . . . . . . Combat Hostiles . | . . . . . . Parts Fried 4 | . . . 4 . . Impact Corruptions 6 | . . . 6 . . Robots Melted . | . . . . . . Combat Hostiles . | . . . . . . Parts Melted 10 | . 9 . 1 . . Heat Transferred 3145 | . 1813 185 1147 . . Parts Sabotaged . | . . . . . . Parts Stolen . | . . . . . . Parts Stripped . | . . . . . . Power Chain Reactions 1 | . 1 . . . . Missiles Intercepted . | . . . . . . Alert | -11 -10 -10 -9 -9 -9 ------- Run | Scr Mat Min Mat Min Exi Peak Influence 670 | . 163 151 670 348 . Initial 224 | . . 63 . 224 . Average 215 | . 59 60 386 333 . Maximum Alert Level 2 | . . . 2 1 . Low Security (%) 59 | 100 100 100 16 . . Level 1 13 | . . . 27 100 . Level 2 26 | . . . 56 . . Level 3 . | . . . . . . Level 4 . | . . . . . . Level 5 . | . . . . . . High Security . | . . . . . . Max Security . | . . . . . . Squads Dispatched 6 | . 1 . 5 . . Investigation 2 | . 1 . 1 . . Extermination . | . . . . . . Reinforcement 2 | . . . 2 . . Assault 2 | . . . 2 . . Garrison . | . . . . . . Intercept . | . . . . . . Searches Triggered . | . . . . . . Construction Impeded . | . . . . . . Haulers Reinforced . | . . . . . . Active Scanning Responses . | . . . . . . Cargo Convoy Interrupts . | . . . . . . Stealth | -11 -10 -10 -9 -9 -9 --------- Run | Scr Mat Min Mat Min Exi Distress Signals 4 | . 1 . 3 . . Communications Jammed . | . . . . . . Distress Signals . | . . . . . . Times Spotted 91 | . 18 8 47 3 15 Peak Tracking Total 10 | . 3 3 6 3 10 Tactical Retreats 5 | . . . 1 . 4 Traps | -11 -10 -10 -9 -9 -9 ------- Run | Scr Mat Min Mat Min Exi Traps Triggered 2 | . 2 . . . . Indirectly . | . . . . . . Trap Hack Attempts . | . . . . . . Triggered . | . . . . . . Disarmed . | . . . . . . Reprogrammed . | . . . . . . Reused . | . . . . . . Traps Extracted . | . . . . . . Installed . | . . . . . . Triggered . | . . . . . . Exploded 3 | . . . . . 3 Machines | -11 -10 -10 -9 -9 -9 ---------- Run | Scr Mat Min Mat Min Exi Machines Disabled 6 | . 1 . . . 5 Max in Single Turn 2 | . 1 . . . 2 Machines Sabotaged . | . . . . . . Overloaded Fab Kills . | . . . . . . Hacking | -11 -10 -10 -9 -9 -9 --------- Run | Scr Mat Min Mat Min Exi Machines Accessed 15 | . 7 1 6 . 1 Terminals 13 | . 6 1 6 . . Fabricators . | . . . . . . Repair Stations . | . . . . . . Recycling Units 1 | . 1 . . . . Scanalyzers . | . . . . . . Garrison Access . | . . . . . . Total Hacks 39 | . 18 2 18 . 1 Successful 16 | . 8 1 6 . 1 Failed 23 | . 10 1 12 . . Catastrophic 5 | . 1 . 4 . . Database Lockouts . | . . . . . . Manual 18 | . 9 2 7 . . Terminals 37 | . 17 2 18 . . Fabricators . | . . . . . . Repair Stations . | . . . . . . Recycling Units 1 | . 1 . . . . Scanalyzers . | . . . . . . Garrison Access . | . . . . . . Terminal Hacks 13 | . 5 1 6 . 1 Record 1 | . . . . . 1 Robot Analysis 1 | . 1 . . . . Prototype ID Bank 5 | . 2 1 2 . . Branch Access Points 1 | . . . 1 . . Terminal Index 1 | . 1 . . . . Unreport Threat 1 | . . . 1 . . Locate Traps 2 | . . . 2 . . Zone Layout 1 | . 1 . . . . Fabricator Hacks . | . . . . . . Repair Station Hacks . | . . . . . . Recycling Unit Hacks . | . . . . . . Scanalyzer . | . . . . . . Garrison Access Hacks . | . . . . . . Unauthorized Hacks 3 | . 3 . . . . Terminals 2 | . 2 . . . . Botnet 1 | . 1 . . . . Operators 1 | . 1 . . . . Fabricators . | . . . . . . Repair Stations . | . . . . . . Recycling Units 1 | . 1 . . . . Tunnel 1 | . 1 . . . . Scanalyzers . | . . . . . . Garrison Access . | . . . . . . Data Cores Recovered . | . . . . . . Used . | . . . . . . Hacking Detections 12 | . 6 1 5 . . Full Trace Events 2 | . . . 2 . . Feedback Events 2 | . . . 2 . . Corruption 2 | . . . 2 . . Feedback Blocked . | . . . . . . Robot Schematics Acquired . | . . . . . . Robots Built . | . . . . . . Authchips . | . . . . . . Time . | . . . . . . Total Robot Build Rating . | . . . . . . Part Schematics Acquired . | . . . . . . Parts Built . | . . . . . . Authchips . | . . . . . . Time . | . . . . . . Total Part Build Rating . | . . . . . . Parts Repaired . | . . . . . . Time . | . . . . . . Parts Recycled . | . . . . . . Recycled Matter . | . . . . . . Retrieved Matter . | . . . . . . Retrieved Components . | . . . . . . Parts Scanalyzed . | . . . . . . Part Schematics Acquired . | . . . . . . Parts Damaged . | . . . . . . Bothacking | -11 -10 -10 -9 -9 -9 ------------ Run | Scr Mat Min Mat Min Exi Used RIF Installer . | . . . . . . Robots Hacked . | . . . . . . Non-combat . | . . . . . . Combat . | . . . . . . Robot Hacks Applied . | . . . . . . Relay Couplers Released . | . . . . . . Fabnet Peak Effective % . | . . . . . . Robots Rewired . | . . . . . . Allies Hacked . | . . . . . . Hacks Repelled . | . . . . . . Allies | -11 -10 -10 -9 -9 -9 -------- Run | Scr Mat Min Mat Min Exi Total Allies . | . . . . . . Largest Group . | . . . . . . Highest-Rated Group . | . . . . . . Highest-Rated Ally . | . . . . . . Total Orders . | . . . . . . Ally Attacks . | . . . . . . Total Damage . | . . . . . . Kills . | . . . . . . Allies Corrupted . | . . . . . . Allies Melted . | . . . . . . Intel | -11 -10 -10 -9 -9 -9 ------- Run | Scr Mat Min Mat Min Exi Robot Analysis Total 1 | . 1 . . . . Derelict Logs Recovered 2 | . . 2 . . . Drone Launches . | . . . . . . Drone Recoveries . | . . . . . . Exploration | -11 -10 -10 -9 -9 -9 ------------- Run | Scr Mat Min Mat Min Exi Turns Passed 5581 | 4 1479 1002 2240 36 820 Spaces Moved 2403 | 1 682 531 887 14 288 Core . | . . . . . . Treads 92 | 1 87 . . . 4 Legs . | . . . . . . Wheels 2311 | . 595 531 887 14 284 Hover . | . . . . . . Flight . | . . . . . . Fastest Speed 130 | 160 130 175 190 210 150 Average Speed 192 | 160 178 182 208 210 195 Slowest Speed 480 | 160 320 190 210 210 480 Overloaded Moves . | . . . . . . Propulsion Burnouts . | . . . . . . Robots Hopped . | . . . . . . Cave-ins Triggered 1 | . . . . 1 . Exploration Rate (%) 54 | 2 91 95 75 6 55 Regions Visited 5 Branch Regions 3 Pre-discovered Areas 2 | . 1 . . . 1 Known Exits Taken 1 | . . . 1 . . Unknown Exits Taken 4 | 1 1 1 . 1 . Scrap Searched 1 | . . 1 . . . Spaces Dug 33 | . . 6 27 . . Terrain Destroyed 175 | . 30 6 80 19 40 Melee 2 | . . . 2 . . Projectile 13 | . . . . . 13 AOE 159 | . 30 6 78 19 26 Terrain Rammed . | . . . . . . Walls Destroyed . | . . . . . . Machines Disabled . | . . . . . . Actions | -11 -10 -10 -9 -9 -9 --------- Run | Scr Mat Min Mat Min Exi Total 2967 | 6 822 550 1114 18 457 Wait 136 | . 27 . 52 . 57 Move 2398 | . 681 530 886 13 288 Hop . | . . . . . . Pick Up 58 | . 18 7 18 . 15 Fast Attach 12 | . 7 1 3 . 1 Attach 23 | 2 4 . 3 1 13 Detach 6 | . 2 . . . 4 Swap 44 | . 8 4 23 2 7 Drop 52 | 4 9 2 28 . 9 Fire 229 | . 66 6 92 2 63 Melee 9 | . . . 9 . . Ram . | . . . . . . Kick . | . . . . . . Crush . | . . . . . . Escape Stasis . | . . . . . . Rewire . | . . . . . . Trap . | . . . . . . Miscellaneous . | . . . . . . Route ------- -11/Scrapyard -10/Materials (discovered 5 exits: *Mat x3 / *Min x2) -10/Mines (discovered 2 exits: *Mat x2) -9/Materials (discovered 4 exits: [*Mat x2] / *Min / *Sto) -9/Mines -9/Exiles History --------- Turn | Location | Event 5 | -11/Scrapyard | Discovered new exit (range 0) 5 | -11/Scrapyard | Entered Materials 221 | -10/Materials | Discovered new exit (range 15) 317 | -10/Materials | Build established: Mutant 405 | -10/Materials | Discovered new exit (range 16) 708 | -10/Materials | Discovered new exit (range 11) 873 | -10/Materials | Discovered new exit (range 14) 1293 | -10/Materials | Discovered new exit (range 16) 1484 | -10/Materials | Entered Mines 1497 | -10/Mines | Met a Derelict bent on vengeance 1505 | -10/Mines | Learned Materials trap positions 1571 | -10/Mines | Discovered new exit (range 7) 1744 | -10/Mines | Discovered new exit (range 11) 1933 | -10/Mines | Joined a pair of Derelicts in attacking an 0b10 outpost 2486 | -10/Mines | Entered Materials 2486 | -9/Materials | Evolved 2 slots: Propulsion x1, Utility x1 2487 | -9/Materials | Loaded intel: 13 trap records 3335 | -9/Materials | Discovered new exit (range 4) 3686 | -9/Materials | First assault squad dispatched 3735 | -9/Materials | Build established: Scavenger-Mutant 3872 | -9/Materials | Discovered new exit (range 11) 4454 | -9/Materials | Discovered new exit (range 15) 4509 | -9/Materials | Identified exit to Mines 4509 | -9/Materials | Identified exit to Storage 4726 | -9/Materials | Entered Mines 4750 | -9/Mines | Crushed by falling debris 4751 | -9/Mines | Deemed a non-threat by the Exiles lab entrance 4753 | -9/Mines | Discovered new exit (range 5) 4762 | -9/Mines | Entered Exiles 4832 | -9/Exiles | Met 8R-AWN 4873 | -9/Exiles | Met EX-HEX 4951 | -9/Exiles | Met EX-DEC 4960 | -9/Exiles | Learned location of Zion (-7) 5231 | -9/Exiles | Attacked by the Exiles 5269 | -9/Exiles | Core integrity fell below 50% 5374 | -9/Exiles | Core integrity fell below 20% 5413 | -9/Exiles | Destroyed 8R-AWN 5441 | -9/Exiles | Lost 10 parts (1p4n3u2w) 5443 | -9/Exiles | Found Prototype Ballistic Gun 5448 | -9/Exiles | Found Prototype Ballistic Gun 5454 | -9/Exiles | Found Prototype Device 5457 | -9/Exiles | Found Prototype Processor 5469 | -9/Exiles | Found Prototype Protection 5521 | -9/Exiles | Identified 8R-AWN's Boregun (x2) 5582 | -9/Exiles | Destroyed by DAS Turret with DAS Cannon Last Messages --------------- 05478_ Identified Gravity Neutralizer. 05483_ System corrupted: FCS attempts to trigger Hvy. Assault Rifle. 05483_ System corrupted: Hvy. Assault Rifle misfires. 05521_ Identified 8R-AWN's Boregun. 05525_ System corrupted: Matter fused (-6). 05525_ HV Slug penetrates Wall. 05527_ HV Slug penetrates Machine. 05533_ HV Slug penetrates Wall. 05555_ System corrupted: Energy discharge (-83). 05558_ HV Slug penetrates Wall. 05558_ HV Slug penetrates Earth. 05560_ HV Slug penetrates Wall. 05562_ HV Slug penetrates Machine. 05563_ Lgt. Treads destroyed. 05563_ Knocked back. 05566_ Acquired 5 matter. 05572_ HV Slug penetrates Wall. 05575_ Wall collapses. 05576_ HV Slug penetrates Earth. 05578_ HV Slug penetrates Wall. Map ----- +----------------------------------------------------+ | ?????????????????????????????????????????????????? | | ?????????????????????????????????????????????????? | | ?????????????????????????????????????????????????? | | ?????????????????????????????????????????????????? | | ?????????????????????????????????????????????????? | | ?????????????????????????????????????????????????? | | ?????????????????????????????????????????????????? | | ?????????????????????????????????????????????????? | | ??? ??????????????#######????????????????????????? | | ??? ######???????#!!! "#????????????????????????? | | ?? #""#??????# "#????????????????????????? | | ??? ??????# "#????????????????????????? | | ??" #????## ""#????????????##??????????? | | ??? #####" ""#???????????? """???????? | | ???# ##" ""#????????????" """#??????? | | ????# #"" #??????????????" ???????? | | ???????# ##????????????"" ???????? | | ??????????# ####?????????"" "#??????? | | ??????????### ##???????? ""???????? | | ????######## # # ####??????" "????????? | | ????# !!"""" # #??????# #????????# | | ????#! "### ## ####??### ###?###### | | ????#! #?# ;####X# #"###""""" | | ????#! "#?## """""" " | | ????# !""""" ""# #?#" % % " """ | | ????########"# ###?## @ " " | | ??????????# # #????# | | ??????????# ## #????## | | ?????????? ?# #?????### ## % | | ?????????# #?# #???????# ##;; | | ????????? ??# #???????##??#;; | | ????????###??# #???????????? ; " " | | ?????????????# #????????????#; ## | | ?????????????? #????????????# ""##? | | ?????????????? ?????????????#" " """##?? | | ?????????????? ????????????#"" """##??? | | ?????????????? ????????????#""" ""#???? | | ?????????????? ????????????#"" ###### | | ?????????????? ????????????#""" t ## | | ???????????????????????????#"" | | ???????????????????????????##"" | | ????????????????????????????#"""" | | ?????????????????????????????# | | ?????????????????????????????#" | | ?????????????????????????????#"""" " | | ?????????????????????????????#"" ""# | | ??????????????????????????????" """"## | | ??????????????????????????????""" """#? | | ??????????????????????????????? ""##? | | ???????????????????????????????"" """##?? | +----------------------------------------------------+ Best States ------------- Heat Dissipation 42 Energy Generation 19 Energy Capacity 310 Matter Stores 300 Matter Capacity 300 Sight Range 16 Terrain Scan Density 10 Additional Mass Support 12 Armor Coverage 300 Evasion (%) 40 Recoil Reduction 3 Salvage Targeting 1 Item Schematics ----------------- None Robot Schematics ------------------ None Fabricated ------------ Nothing Alien Tech Used ----------------- None Achievements -------------- None Challenges ------------ None Game ------ Seed TeslaCooledMantle Manual? 0 Play Time 00:30:08 Cumulative 733.1 hours Start 2022.12.21 @ 20:30:30 End 2022.12.21 @ 20:56:23 Sessions 1 Manual Loads 0 Difficulty Rogue Special Mode None Game No. 648 Rogue 648 Adventurer 0 Explorer 0 Win Type - Total 34 Types 14/5/6/1/1/1/4/1/1 Lore% 93 Gallery% 97 Achievement% 80 Wizard Run 0 Options --------- ASCII 0 Keyboard 0 Movement Mouse Keybinds 1 Fullscreen 2 Font 24/Smallcaps Map View 76x50 Tactical HUD 1 Map Filters NONE Filters NONE Steam 1 RUN: c5787c16-55b7-4cdd-8983-9cc8bdea5eca